fUSD/lending_fUSD_20250110
["ID","MTS","AMOUNT","RATE_DAILY","PERIOD"]
[348415673,1736523048796,-500.0,9.013e-05,2]
[348415674,1736523048806,-500.0,9.013e-05,2]
[348415675,1736523048816,-500.60283326,9.013e-05,2]
[348415676,1736523048829,-500.65316577,9.013e-05,2]
[348415677,1736523048839,-500.0,9.013e-05,2]
[348415678,1736523048850,-500.70109049,9.013e-05,2]
[348415679,1736523048859,-500.0,9.013e-05,2]
[348415680,1736523048869,-500.0,9.013e-05,2]
[348415681,1736523048879,-302.76018069,9.013e-05,2]
[348415682,1736523048889,-500.0,9.013e-05,2]
[348415683,1736523048899,-500.0,9.013e-05,2]
[348415684,1736523048909,-500.0,9.013e-05,2]
[348415685,1736523048919,-500.0,9.013e-05,2]
[348415686,1736523048928,-528.67360343,9.013e-05,2]
[348415687,1736523048938,-500.0,9.013e-05,2]
[348415688,1736523048948,-500.70506515,9.013e-05,2]
[348415689,1736523048958,-501.47707719,9.013e-05,2]
[348415690,1736523048968,-501.41515406,9.013e-05,2]
[348415691,1736523048977,-500.0,9.013e-05,2]
[348415692,1736523048987,-771.69,9.013e-05,2]
[348415693,1736523048996,-500.0,9.013e-05,2]
[348415694,1736523049006,-500.0,9.013e-05,2]
[348415695,1736523049016,-500.0,9.013e-05,2]
[348415696,1736523049026,-777.11,9.013e-05,2]
[348415697,1736523049035,-503.45258275,9.013e-05,2]
[348415698,1736523049045,-500.0,9.013e-05,2]
[348415699,1736523049056,-500.0,9.013e-05,2]
[348415700,1736523049065,-500.0,9.013e-05,2]
[348415701,1736523049076,-500.0,9.013e-05,2]
[348415702,1736523049086,-500.0,9.013e-05,2]
[348415703,1736523049096,-500.0,9.013e-05,2]
[348415704,1736523049105,-500.0,9.013e-05,2]
[348415705,1736523049115,-500.0,9.013e-05,2]
[348415706,1736523049125,-500.0,9.013e-05,2]
[348415707,1736523049134,-500.0,9.013e-05,2]
[348415708,1736523049144,-500.0,9.013e-05,2]
[348415709,1736523049153,-500.0,9.013e-05,2]
[348415710,1736523049163,-500.0,9.013e-05,2]
[348415711,1736523049172,-500.0,9.013e-05,2]
[348415712,1736523049182,-500.0,9.013e-05,2]
[348415713,1736523049192,-500.0,9.013e-05,2]
[348415714,1736523049202,-500.0,9.013e-05,2]
[348415715,1736523049211,-500.0,9.013e-05,2]
[348415716,1736523049221,-500.0,9.013e-05,2]
[348415717,1736523049231,-500.0,9.013e-05,2]
[348415718,1736523049242,-500.0,9.013e-05,2]
[348415719,1736523049252,-500.0,9.013e-05,2]
[348415720,1736523049262,-500.0,9.013e-05,2]
[348415721,1736523049272,-500.0,9.013e-05,2]
[348415722,1736523049282,-500.0,9.013e-05,2]
[348415723,1736523049291,-500.0,9.013e-05,2]
[348415724,1736523049301,-500.0,9.013e-05,2]
[348415725,1736523049310,-500.0,9.013e-05,2]
[348415726,1736523049320,-500.0,9.013e-05,2]
[348415727,1736523049336,-500.0,9.013e-05,2]
[348415728,1736523049345,-500.0,9.013e-05,2]
[348415729,1736523049355,-514.23013043,9.013e-05,2]
[348415730,1736523049365,-500.0,9.013e-05,2]
[348415731,1736523049374,-500.0,9.013e-05,2]
[348415732,1736523049384,-500.0,9.013e-05,2]
[348415733,1736523049393,-500.0,9.013e-05,2]
[348415734,1736523049403,-500.0,9.013e-05,2]
[348415735,1736523049412,-500.0,9.013e-05,2]
[348415736,1736523049421,-502.40222661,9.013e-05,2]
[348415737,1736523049431,-500.0,9.013e-05,2]
[348415738,1736523049440,-500.0,9.013e-05,2]
[348415739,1736523049450,-500.0,9.013e-05,2]
[348415740,1736523049459,-500.0,9.013e-05,2]
[348415741,1736523049468,-500.0,9.013e-05,2]
[348415742,1736523049478,-500.0,9.013e-05,2]
[348415743,1736523049487,-500.0,9.013e-05,2]
[348415744,1736523049497,-500.0,9.013e-05,2]
[348415745,1736523049507,-500.0,9.013e-05,2]
[348415746,1736523049517,-641.69,9.013e-05,2]
[348415747,1736523049527,-500.0,9.013e-05,2]
[348415748,1736523049538,-500.0,9.013e-05,2]
[348415749,1736523049548,-500.0,9.013e-05,2]
[348415750,1736523049559,-500.0,9.013e-05,2]
[348415751,1736523049571,-500.0,9.013e-05,2]
[348415752,1736523049582,-500.0,9.013e-05,2]
[348415753,1736523049592,-500.0,9.013e-05,2]
[348415754,1736523049603,-500.0,9.013e-05,2]
[348415755,1736523049612,-976.14,9.013e-05,2]
[348415756,1736523049622,-500.0,9.013e-05,2]
[348415757,1736523049632,-500.0,9.013e-05,2]
[348415758,1736523049643,-521.4,9.013e-05,2]
[348415759,1736523049654,-500.0,9.013e-05,2]
[348415760,1736523049664,-500.0,9.013e-05,2]
[348415761,1736523049675,-500.0,9.013e-05,2]
[348415762,1736523049685,-501.28056736,9.013e-05,2]
[348415763,1736523049696,-687.89,9.013e-05,2]
[348415764,1736523049707,-150.0,9.013e-05,2]
[348415765,1736523049718,-500.0,9.013e-05,2]
[348415766,1736523049730,-500.0,9.013e-05,2]
[348415767,1736523049740,-504.99547243,9.013e-05,2]
[348415768,1736523049750,-151.70583884,9.013e-05,2]
[348415769,1736523049760,-500.0,9.013e-05,2]
[348415770,1736523049771,-1150.28,9.013e-05,2]
[348415771,1736523049780,-500.0,9.013e-05,2]
[348415772,1736523049790,-500.0,9.013e-05,2]
[348415773,1736523049800,-881.26,9.013e-05,2]
[348415774,1736523049811,-500.0,9.013e-05,2]
[348415775,1736523049824,-501.00752932,9.013e-05,2]
[348415776,1736523049834,-678.72,9.013e-05,2]
[348415777,1736523049844,-672.49,9.013e-05,2]
[348415778,1736523049854,-501.72472283,9.013e-05,2]
[348415779,1736523049863,-668.92,9.013e-05,2]
[348415780,1736523049873,-500.0,9.013e-05,2]
[348415781,1736523049884,-500.62687629,9.013e-05,2]
[348415782,1736523049895,-500.0,9.013e-05,2]
[348415783,1736523049905,-500.0,9.013e-05,2]
[348415784,1736523049915,-1259.79,9.013e-05,2]
[348415785,1736523049924,-500.0,9.013e-05,2]
[348415786,1736523049935,-767.43,9.013e-05,2]
[348415787,1736523049945,-500.0,9.013e-05,2]
[348415788,1736523049954,-500.0,9.013e-05,2]
[348415789,1736523049964,-500.0,9.013e-05,2]
[348415790,1736523049973,-500.0,9.013e-05,2]
[348415791,1736523049983,-500.0,9.013e-05,2]
[348415792,1736523049992,-500.0,9.013e-05,2]
[348415793,1736523050003,-715.52,9.013e-05,2]
[348415794,1736523050012,-500.0,9.013e-05,2]
[348415795,1736523050022,-892.55,9.013e-05,2]
[348415796,1736523050033,-534.328853,9.013e-05,2]
[348415797,1736523050044,-722.56,9.013e-05,2]
[348415798,1736523050055,-1257.37,9.013e-05,2]
[348415799,1736523050068,-500.0,9.013e-05,2]
[348415800,1736523050086,-500.0,9.013e-05,2]
[348415801,1736523050097,-500.0,9.013e-05,2]
[348415802,1736523050107,-500.0,9.013e-05,2]
[348415803,1736523050117,-1360.33,9.013e-05,2]
[348415804,1736523050127,-500.0,9.013e-05,2]
[348415805,1736523050138,-500.0,9.013e-05,2]
[348415806,1736523050148,-1041.92,9.013e-05,2]
[348415807,1736523050159,-905.09,9.013e-05,2]
[348415808,1736523050169,-1298.76,9.013e-05,2]
[348415809,1736523050179,-972.94,9.013e-05,2]
[348415810,1736523050189,-500.0,9.013e-05,2]
[348415811,1736523050199,-857.81,9.013e-05,2]
[348415812,1736523050209,-500.0,9.013e-05,2]
[348415813,1736523050219,-503.0337876,9.013e-05,2]
[348415814,1736523050229,-1515.42,9.013e-05,2]
[348415815,1736523050239,-1042.5,9.013e-05,2]
[348415816,1736523050249,-1388.16,9.013e-05,2]
[348415817,1736523050259,-3242.75,9.013e-05,2]
[348415818,1736523050269,-500.0,9.013e-05,2]
[348415819,1736523050279,-1589.08,9.013e-05,2]
[348415820,1736523050290,-500.0,9.013e-05,2]
[348415821,1736523050483,-959.83,9.013e-05,2]
[348415822,1736523050494,-500.0,9.013e-05,2]
[348415823,1736523050504,-500.0,9.013e-05,2]
[348415824,1736523050515,-1142.51,9.013e-05,2]
[348415825,1736523050526,-500.0,9.013e-05,2]
[348415826,1736523050536,-500.0,9.013e-05,2]
[348415827,1736523050546,-639.72,9.013e-05,2]
[348415828,1736523050557,-2212.31,9.013e-05,2]
[348415829,1736523050573,-500.0,9.013e-05,2]
[348415830,1736523050583,-7598.69,9.013e-05,2]
[348415831,1736523050593,-1203.7,9.024e-05,2]
[348415832,1736523050604,-4584.33,9.024e-05,2]
[348415833,1736523050614,-1164.0,9.024e-05,2]
[348415834,1736523050624,-500.0,9.024e-05,2]
[348415835,1736523050634,-1284.86,9.024e-05,2]
[348415836,1736523050644,-994.04,9.024e-05,2]
[348415837,1736523050653,-2921.39029662,9.038e-05,2]
[348415838,1736523050663,-2807.72,9.051e-05,2]
[348415839,1736523050672,-3785.84,9.051e-05,2]
[348415840,1736523050683,-2330.28,9.051e-05,2]
[348415841,1736523050693,-2423.96,9.051e-05,2]
[348415842,1736523050703,-500.0,9.051e-05,2]
[348415843,1736523050713,-1705.66,9.051e-05,2]
[348415844,1736523050723,-3880.21,9.051e-05,2]
[348415845,1736523050732,-1879.13,9.051e-05,2]
[348415846,1736523050743,-1341.89,9.051e-05,2]
[348415847,1736523050753,-1457.95,9.051e-05,2]
[348415848,1736523050763,-166.116696,9.075e-05,2]
[348415849,1736523050773,-375.30005157,9.075e-05,2]
[348415850,1736523050782,-500.0,9.075e-05,2]
[348415851,1736523050792,-500.0,9.124e-05,2]
[348415852,1736523050804,-500.0,9.124e-05,2]
[348415853,1736523050814,-500.0,9.124e-05,2]
[348415854,1736523050826,-500.0,9.124e-05,2]
[348415855,1736523050835,-500.0,9.124e-05,2]
[348415856,1736523050846,-203.82,9.124e-05,2]
[348415857,1736523050856,-500.0,9.124e-05,2]
[348415858,1736523050866,-500.0,9.124e-05,2]
[348415859,1736523050876,-500.0,9.124e-05,2]
[348415860,1736523050886,-500.0,9.124e-05,2]
[348415861,1736523050896,-423.47789765,9.124e-05,2]
[348415862,1736523050906,-605.63,9.124e-05,2]
[348415863,1736523050916,-636.36245665,9.124e-05,2]
[348415864,1736523050925,-630.08,9.124e-05,2]
[348415865,1736523050935,-500.0,9.124e-05,2]
[348415866,1736523050945,-500.0,9.124e-05,2]
[348415867,1736523050955,-500.0,9.124e-05,2]
[348415868,1736523050966,-500.0,9.124e-05,2]
[348415869,1736523050976,-500.0,9.124e-05,2]
[348415870,1736523050986,-500.0,9.124e-05,2]
[348415871,1736523050997,-640.76,9.124e-05,2]
[348415872,1736523051012,-500.0,9.124e-05,2]
[348415873,1736523051022,-500.0,9.124e-05,2]
[348415874,1736523051031,-622.85404892,9.124e-05,2]
[348415875,1736523051040,-500.0,9.124e-05,2]
[348415876,1736523051050,-500.0,9.124e-05,2]
[348415877,1736523051059,-500.0,9.124e-05,2]
[348415878,1736523051069,-500.0,9.124e-05,2]
[348415879,1736523051082,-739.45,9.124e-05,2]
[348415880,1736523051092,-500.0,9.124e-05,2]
[348415881,1736523051102,-500.0,9.124e-05,2]
[348415882,1736523051111,-500.0,9.124e-05,2]
[348415883,1736523051120,-500.0,9.124e-05,2]
[348415884,1736523051130,-500.0,9.124e-05,2]
[348415885,1736523051139,-500.0,9.124e-05,2]
[348415886,1736523051149,-500.0,9.124e-05,2]
[348415887,1736523051160,-500.0,9.124e-05,2]
[348415888,1736523051170,-500.0,9.124e-05,2]
[348415889,1736523051179,-500.0,9.124e-05,2]
[348415890,1736523051189,-505.14417339,9.124e-05,2]
[348415891,1736523051199,-500.0,9.124e-05,2]
[348415892,1736523051209,-500.0,9.124e-05,2]
[348415893,1736523051219,-500.46,9.124e-05,2]
[348415894,1736523051228,-500.0,9.124e-05,2]
[348415895,1736523051238,-500.0,9.124e-05,2]
[348415896,1736523051247,-351.34397911,9.124e-05,2]
[348415897,1736523051257,-500.0,9.124e-05,2]
[348415898,1736523051267,-500.0,9.124e-05,2]
[348415899,1736523051277,-500.0,9.124e-05,2]
[348415900,1736523051287,-500.0,9.124e-05,2]
[348415901,1736523051296,-500.0,9.124e-05,2]
[348415902,1736523051307,-500.0,9.124e-05,2]
[348415903,1736523051321,-500.0,9.124e-05,2]
[348415904,1736523051333,-478.99,9.124e-05,2]
[348415905,1736523051343,-500.0,9.124e-05,2]
[348415906,1736523051353,-855.16,9.124e-05,2]
[348415907,1736523051363,-500.0,9.124e-05,2]
[348415908,1736523051373,-500.0,9.124e-05,2]
[348415909,1736523051383,-500.0,9.124e-05,2]
[348415910,1736523051392,-802.99,9.124e-05,2]
[348415911,1736523051402,-509.24629197,9.124e-05,2]
[348415912,1736523051412,-500.0,9.124e-05,2]
[348415913,1736523051421,-500.0,9.124e-05,2]
[348415914,1736523051431,-500.0,9.124e-05,2]
[348415915,1736523051440,-500.0,9.124e-05,2]
[348415916,1736523051453,-500.0,9.124e-05,2]
[348415917,1736523051462,-503.22,9.124e-05,2]
[348415918,1736523051472,-500.0,9.124e-05,2]
[348415919,1736523051482,-500.0,9.124e-05,2]
[348415920,1736523051492,-506.06226391,9.124e-05,2]
[348415921,1736523051503,-501.59490912,9.124e-05,2]
[348415922,1736523051513,-500.0,9.124e-05,2]
[348415923,1736523051523,-500.0,9.124e-05,2]
[348415924,1736523051533,-500.0,9.124e-05,2]
[348415925,1736523051543,-500.0,9.124e-05,2]
[348415926,1736523051553,-500.0,9.124e-05,2]
[348415927,1736523051567,-500.0,9.124e-05,2]
[348415928,1736523051580,-500.0,9.124e-05,2]
[348415929,1736523051591,-500.0,9.124e-05,2]
[348415930,1736523051601,-500.0,9.124e-05,2]
[348415931,1736523051611,-535.12998106,9.124e-05,2]
[348415932,1736523051621,-500.0,9.124e-05,2]
[348415933,1736523051631,-403.09688971,9.124e-05,2]
[348415934,1736523051642,-500.0,9.124e-05,2]
[348415935,1736523051652,-500.0,9.124e-05,2]
[348415936,1736523051662,-500.0,9.124e-05,2]
[348415937,1736523051671,-500.0,9.124e-05,2]
[348415938,1736523051681,-719.56,9.124e-05,2]
[348415939,1736523051691,-500.0,9.124e-05,2]
[348415940,1736523051701,-500.0,9.124e-05,2]
[348415941,1736523051711,-500.0,9.124e-05,2]
[348415942,1736523051721,-500.0,9.124e-05,2]
[348415943,1736523051731,-500.0,9.124e-05,2]
[348415944,1736523051741,-509.77953626,9.124e-05,2]
[348415945,1736523051751,-500.0,9.124e-05,2]
[348415946,1736523051761,-500.0,9.124e-05,2]
[348415947,1736523051771,-500.0,9.124e-05,2]
[348415948,1736523051781,-500.0,9.124e-05,2]
[348415949,1736523051790,-500.0,9.124e-05,2]
[348415950,1736523051800,-500.0,9.124e-05,2]
[348415951,1736523051810,-500.0,9.124e-05,2]
[348415952,1736523051819,-593.99484072,9.124e-05,2]
[348415953,1736523051832,-500.0,9.124e-05,2]
[348415954,1736523051841,-500.0,9.124e-05,2]
[348415955,1736523051850,-500.0,9.124e-05,2]
[348415956,1736523051859,-500.0,9.124e-05,2]
[348415957,1736523051868,-368.49081644,9.124e-05,2]
[348415958,1736523051878,-500.0,9.124e-05,2]
[348415959,1736523051887,-500.0,9.124e-05,2]
[348415960,1736523051897,-500.0,9.124e-05,2]
[348415961,1736523051906,-500.0,9.124e-05,2]
[348415962,1736523051916,-500.0,9.124e-05,2]
[348415963,1736523051925,-500.0,9.124e-05,2]
[348415964,1736523051935,-500.0,9.124e-05,2]
[348415965,1736523051945,-500.0,9.124e-05,2]
[348415966,1736523051955,-500.0,9.124e-05,2]
[348415967,1736523051964,-500.0,9.124e-05,2]
[348415968,1736523051974,-500.0,9.124e-05,2]
[348415969,1736523051983,-500.0,9.124e-05,2]
[348415970,1736523051993,-500.0,9.124e-05,2]
[348415971,1736523052002,-500.0,9.124e-05,2]
[348415972,1736523052012,-627.11,9.124e-05,2]
[348415973,1736523052021,-500.0,9.124e-05,2]
[348415974,1736523052031,-500.0,9.124e-05,2]
[348415975,1736523052039,-500.0,9.124e-05,2]
[348415976,1736523052049,-500.0,9.124e-05,2]
[348415977,1736523052059,-500.0,9.124e-05,2]
[348415978,1736523052068,-500.0,9.124e-05,2]
[348415979,1736523052080,-500.0,9.124e-05,2]
[348415980,1736523052090,-501.00592784,9.124e-05,2]
[348415981,1736523052100,-501.81547133,9.124e-05,2]
[348415982,1736523052110,-500.98535606,9.124e-05,2]
[348415983,1736523052119,-500.0,9.124e-05,2]
[348415984,1736523052129,-500.0,9.124e-05,2]
[348415985,1736523052139,-500.0,9.124e-05,2]
[348415986,1736523052148,-500.0,9.124e-05,2]
[348415987,1736523052158,-500.0,9.124e-05,2]
[348415988,1736523052168,-500.0,9.124e-05,2]
[348415989,1736523052177,-805.46,9.124e-05,2]
[348415990,1736523052187,-500.0,9.124e-05,2]
[348415991,1736523052197,-500.0,9.124e-05,2]
[348415992,1736523052206,-500.0,9.124e-05,2]
[348415993,1736523052216,-500.0,9.124e-05,7]
[348415994,1736523052225,-500.0,9.124e-05,2]
[348415995,1736523052234,-500.0,9.124e-05,2]
[348415996,1736523052244,-500.0,9.124e-05,2]
[348415997,1736523052254,-500.0,9.124e-05,2]
[348415998,1736523052263,-500.0,9.124e-05,2]
[348415999,1736523052272,-500.0,9.124e-05,2]
[348416000,1736523052282,-200.69824504,9.124e-05,2]
[348416001,1736523052292,-500.0,9.124e-05,2]
[348416002,1736523052301,-502.56980573,9.124e-05,2]
[348416003,1736523052311,-500.0,9.124e-05,2]
[348416004,1736523052321,-500.0,9.124e-05,2]
[348416005,1736523052335,-500.0,9.124e-05,2]
[348416006,1736523052344,-500.0,9.124e-05,2]
[348416007,1736523052354,-500.0,9.124e-05,2]
[348416008,1736523052364,-500.0,9.124e-05,2]
[348416009,1736523052374,-500.0,9.124e-05,2]
[348416010,1736523052383,-500.0,9.124e-05,2]
[348416011,1736523052393,-500.0,9.124e-05,2]
[348416012,1736523052402,-500.0,9.124e-05,2]
[348416013,1736523052412,-500.0,9.124e-05,2]
[348416014,1736523052422,-500.0,9.124e-05,2]
[348416015,1736523052432,-500.0,9.124e-05,2]
[348416016,1736523052442,-500.0,9.124e-05,2]
[348416017,1736523052451,-500.0,9.124e-05,2]
[348416018,1736523052461,-890.36,9.125e-05,2]
[348416019,1736523052470,-1058.1,9.125e-05,2]
[348416020,1736523052480,-500.0,9.125e-05,2]
[348416021,1736523052490,-882.45,9.125e-05,2]
[348416022,1736523052500,-1148.23,9.125e-05,2]
[348416023,1736523052510,-500.0,9.125e-05,2]
[348416024,1736523052520,-717.8,9.125e-05,2]
[348416025,1736523052529,-1318.02,9.125e-05,2]
[348416026,1736523052539,-1445.67,9.125e-05,2]
[348416027,1736523052549,-729.69,9.125e-05,2]
[348416028,1736523052561,-500.0,9.125e-05,2]
[348416029,1736523052572,-1466.24,9.125e-05,2]
[348416030,1736523052585,-1064.1,9.125e-05,2]
[348416031,1736523052595,-1108.95,9.125e-05,2]
[348416032,1736523052606,-1937.77,9.125e-05,2]
[348416033,1736523052615,-500.0,9.125e-05,2]
[348416034,1736523052625,-2265.16,9.125e-05,2]
[348416035,1736523052635,-500.0,9.125e-05,2]
[348416036,1736523052645,-500.0,9.125e-05,2]
[348416037,1736523052655,-1057.49,9.125e-05,2]
[348416038,1736523052665,-500.0,9.125e-05,2]
[348416039,1736523052674,-500.0,9.125e-05,2]
[348416040,1736523052684,-500.0,9.125e-05,2]
[348416041,1736523052694,-500.0,9.125e-05,2]
[348416042,1736523052704,-1061.54,9.125e-05,2]
[348416043,1736523052713,-1470.67,9.125e-05,2]
[348416044,1736523052722,-500.0,9.125e-05,2]
[348416045,1736523052732,-500.0,9.125e-05,2]
[348416046,1736523052741,-500.0,9.125e-05,2]
[348416047,1736523052751,-745.27,9.125e-05,2]
[348416048,1736523052760,-693.6,9.125e-05,2]
[348416049,1736523052770,-3628.93,9.125e-05,2]
[348416050,1736523052780,-500.0,9.125e-05,2]
[348416051,1736523052790,-500.0,9.125e-05,2]
[348416052,1736523052799,-956.24,9.125e-05,2]
[348416053,1736523052809,-616.85,9.125e-05,2]
[348416054,1736523052818,-1012.26,9.125e-05,2]
[348416055,1736523052890,-529.67857793,9.125e-05,2]
[348416056,1736523052900,-2271.72,9.125e-05,2]
[348416057,1736523052910,-500.0,9.125e-05,2]
[348416058,1736523052921,-500.0,9.125e-05,2]
[348416059,1736523052933,-500.0,9.125e-05,2]
[348416060,1736523052942,-500.0,9.125e-05,2]
[348416061,1736523052952,-1274.35,9.125e-05,2]
[348416062,1736523052962,-4912.19,9.125e-05,2]
[348416063,1736523052971,-572.0,9.125e-05,2]
[348416064,1736523052981,-500.0,9.125e-05,2]
[348416065,1736523052991,-500.0,9.125e-05,2]
[348416066,1736523053001,-696.77,9.125e-05,2]
[348416067,1736523053011,-701.21,9.125e-05,2]
[348416068,1736523053020,-6057.02,9.125e-05,2]
[348416069,1736523053030,-969.86,9.125e-05,2]
[348416070,1736523053040,-500.0,9.125e-05,2]
[348416071,1736523053050,-864.4,9.125e-05,2]
[348416072,1736523053059,-500.0,9.125e-05,2]
[348416073,1736523053069,-500.0,9.125e-05,2]
[348416074,1736523053079,-643.05,9.125e-05,2]
[348416075,1736523053089,-823.49,9.125e-05,2]
[348416076,1736523053098,-696.44,9.125e-05,2]
[348416077,1736523053107,-573.02,9.125e-05,2]
[348416078,1736523053116,-500.0,9.125e-05,2]
[348416079,1736523053126,-500.0,9.125e-05,2]
[348416080,1736523053135,-849.34,9.125e-05,2]
[348416081,1736523053143,-500.0,9.125e-05,2]
[348416082,1736523053153,-2741.68,9.125e-05,2]
[348416083,1736523053162,-1090.78,9.125e-05,2]
[348416084,1736523053171,-500.0,9.125e-05,2]
[348416085,1736523053181,-500.0,9.125e-05,2]
[348416086,1736523053192,-928.64,9.125e-05,2]
[348416087,1736523053201,-500.0,9.125e-05,2]
[348416088,1736523053210,-500.0,9.125e-05,2]
[348416089,1736523053220,-500.0,9.125e-05,2]
[348416090,1736523053229,-5865.96,9.125e-05,2]
[348416091,1736523053239,-974.19,9.125e-05,2]
[348416092,1736523053247,-500.0,9.125e-05,2]
[348416093,1736523053256,-871.11,9.125e-05,2]
[348416094,1736523053266,-1238.69,9.125e-05,2]
[348416095,1736523053275,-500.0,9.125e-05,2]
[348416096,1736523053285,-500.0,9.125e-05,2]
[348416097,1736523053295,-500.0,9.125e-05,2]
[348416098,1736523053304,-637.63,9.125e-05,2]
[348416099,1736523053313,-646.12,9.125e-05,2]
[348416100,1736523053323,-500.0,9.125e-05,2]
[348416101,1736523053333,-918.03,9.125e-05,2]
[348416102,1736523053342,-500.0,9.125e-05,2]
[348416103,1736523053351,-1578.46,9.125e-05,2]
[348416104,1736523053360,-1248.67,9.125e-05,2]
[348416105,1736523053369,-1571.99,9.125e-05,2]
[348416106,1736523053378,-1525.3,9.125e-05,2]
[348416107,1736523053387,-150.0,9.178e-05,2]
[348416108,1736523053396,-150.0,9.178e-05,2]
[348416109,1736523053406,-150.0,9.178e-05,2]
[348416110,1736523053415,-150.0,9.178e-05,2]
[348416111,1736523053424,-629.18557772,9.226e-05,2]
[348416112,1736523053433,-500.0,9.226e-05,2]
[348416113,1736523053442,-500.0,9.226e-05,2]
[348416114,1736523053451,-500.0,9.226e-05,2]
[348416115,1736523053460,-500.0,9.226e-05,2]
[348416116,1736523053469,-504.46499131,9.226e-05,2]
[348416117,1736523053478,-500.0,9.226e-05,2]
[348416118,1736523053488,-500.0,9.226e-05,2]
[348416119,1736523053497,-2465.53,9.226e-05,2]
[348416120,1736523053506,-1808.33,9.226e-05,2]
[348416121,1736523053516,-2381.62,9.226e-05,2]
[348416122,1736523053525,-2145.58,9.226e-05,2]
[348416123,1736523053534,-1000.0,9.247e-05,2]
[348416124,1736523053544,-1111.03,9.285e-05,2]
[348416125,1736523053553,-1204.43,9.285e-05,2]
[348416126,1736523053566,-502.73,9.285e-05,2]
[348416127,1736523053578,-1079.51,9.285e-05,2]
[348416128,1736523053587,-2026.92,9.285e-05,2]
[348416129,1736523053597,-1140.23,9.285e-05,2]
[348416130,1736523053606,-1706.52,9.285e-05,2]
[348416131,1736523053615,-2967.49,9.285e-05,2]
[348416132,1736523053624,-1073.65,9.285e-05,2]
[348416133,1736523053635,-3032.39,9.285e-05,2]
[348416134,1736523053644,-2285.64,9.285e-05,2]
[348416135,1736523053653,-8578.89,9.285e-05,2]
[348416136,1736523053663,-1197.4,9.285e-05,2]
[348416137,1736523053672,-500.0,9.285e-05,2]
[348416138,1736523053681,-1047.01,9.285e-05,2]
[348416139,1736523053691,-500.0,9.285e-05,2]
[348416140,1736523053700,-2700.71,9.285e-05,2]
[348416141,1736523053709,-1067.61,9.285e-05,2]
[348416142,1736523053718,-1530.87,9.285e-05,2]
[348416143,1736523053727,-3626.48,9.285e-05,2]
[348416144,1736523053736,-2057.32,9.285e-05,2]
[348416145,1736523053746,-1865.11,9.285e-05,2]
[348416146,1736523053755,-2720.67,9.285e-05,2]
[348416147,1736523053765,-1947.85,9.285e-05,2]
[348416148,1736523053774,-500.0,9.285e-05,2]
[348416149,1736523053783,-1435.82,9.285e-05,2]
[348416150,1736523053792,-500.0,9.285e-05,2]
[348416151,1736523053803,-3710.53,9.285e-05,2]
[348416152,1736523053812,-500.0,9.285e-05,2]
[348416153,1736523053822,-5054.38,9.285e-05,2]
[348416154,1736523053834,-3553.5,9.285e-05,2]
[348416155,1736523053843,-500.0,9.285e-05,2]
[348416156,1736523053853,-500.0,9.285e-05,2]
[348416157,1736523053863,-447.88537253,9.285e-05,2]
[348416158,1736523053873,-1028.38,9.285e-05,2]
[348416159,1736523053882,-500.0,9.285e-05,2]
[348416160,1736523053892,-1442.69,9.285e-05,2]
[348416161,1736523053903,-2140.87,9.285e-05,2]
[348416162,1736523053925,-500.0,9.285e-05,2]
[348416163,1736523053936,-1091.06,9.285e-05,2]
[348416164,1736523053946,-1510.87,9.285e-05,2]
[348416165,1736523053956,-389.72506305,9.285e-05,2]
[348416166,1736523053965,-500.0,9.285e-05,2]
[348416167,1736523053975,-854.48,9.286e-05,2]
[348416168,1736523053984,-500.0,9.286e-05,2]
[348416169,1736523053996,-500.0,9.286e-05,2]
[348416170,1736523054006,-458.81155341,9.286e-05,2]
[348416171,1736523054015,-805.07,9.286e-05,2]
[348416172,1736523054025,-1038.56,9.286e-05,2]